bitfinex-derivatives/quotes_SOLF0:USTF0_20241026
["timestamp","ask_amount","ask_price","bid_price","bid_amount"]
[1729984742166,4.16,171.09,171.08,1.46307512]
[1729984742365,15.17095072,171.09,171.08,1.46307512]
[1729984743465,15.17095072,171.09,171.05,2.9263]
[1729984743662,81.51319057,171.16,171.06,6.53496467]
[1729984743868,81.51319057,171.16,171.1,11.01055072]
[1729984743869,2.9249,171.14,171.1,11.01055072]
[1729984744067,2.9249,171.14,171.11,1.46308898]
[1729984744269,2.9249,171.14,171.1,8.08515072]
[1729984744778,2.9249,171.14,171.11,1.46302295]
[1729984744968,2.9249,171.14,171.1,8.08515072]
[1729984745166,2.9249,171.14,171.11,1.46309069]
[1729984745368,2.9249,171.14,171.11,2.9254]
[1729984745569,2.9249,171.14,171.09,8.08515072]
[1729984745570,11.01005072,171.14,171.09,8.08515072]
[1729984745769,11.01005072,171.14,171.1,1.46313598]
[1729984745971,2.9251,171.13,171.1,2.9256]
[1729984750479,8.08515072,171.14,171.08,8.08515072]
[1729984750781,11.01005072,171.14,171.09,1.46314573]
[1729984750976,11.01005072,171.14,171.08,8.08515072]
[1729984751172,11.01005072,171.14,171.09,1.46314573]
[1729984751372,11.01005072,171.14,171.1,2.9254]
[1729984751772,11.01005072,171.14,171.08,8.08515072]
[1729984751974,2.9248,171.15,171.11,8.08515072]
[1729984752278,4.16,171.14,171.11,8.08515072]
[1729984752978,4.16,171.14,171.12,2.9252]
[1729984753782,7.0849,171.14,171.1,11.01065072]
[1729984753982,4.16,171.14,171.1,11.01065072]
[1729984754178,4.16,171.14,171.05,2.9264]
[1729984754179,8.08515072,171.12,171.05,2.9264]
[1729984754486,8.08515072,171.09,170.99,3.7447]
[1729984754684,4.16,171.08,171.03,8.08515072]
[1729984754980,4.16,171.08,171.04,1.46346956]
[1729984755186,2.9262,171.07,171.05,1.46346956]
[1729984755384,8.08515072,171.07,171.01,8.08515072]
[1729984755679,8.08515072,171.07,171.02,6.52751436]
[1729984755983,8.08515072,171.07,171.03,9.54865821]
[1729984756179,4.16,171.08,171.04,9.54865821]
[1729984756374,4.16,171.08,171.05,1.46350749]
[1729984756574,4.16,171.08,171.04,8.08515072]
[1729984756770,4.16,171.08,171.05,1.46340574]
[1729984756982,4.16,171.08,171.04,8.08515072]
[1729984757277,4.16,171.08,171.07,2.9261]
[1729984764379,80.26529057,171.16,171.1,2.9255]
[1729984764380,2.925,171.14,171.1,2.9255]
[1729984764587,4.16,171.13,171.1,2.9255]
[1729984765279,4.16,171.13,171.09,8.08515072]
[1729984766190,2.9253,171.12,171.09,8.08515072]
[1729984766881,2.9253,171.12,171.09,11.01085072]
[1729984768186,2.9253,171.12,171.09,2.9257]
[1729984774102,12.24515072,171.13,171.04,1.46330691]
[1729984774291,2.9254,171.11,171.08,2.9258]
[1729984775487,4.16,171.1,171.08,2.9258]
[1729984778808,2.5823,171.19,171.09,8.08515072]
[1729984778995,8.08515072,171.16,171.1,8.08515072]
[1729984779189,8.08515072,171.14,171.05,1.1963]
[1729984779399,4.16,171.13,171.1,2.9254]
[1729984780703,4.16,171.13,171.08,8.08515072]
[1729984780902,2.9253,171.12,171.09,2.9257]
[1729984782103,2.9253,171.12,171.07,8.08515072]
[1729984782104,2.9255,171.11,171.08,2.9259]
[1729984789406,2.9257,171.1,171.07,2.9261]
[1729984789608,4.16,171.09,171.05,8.08515072]
[1729984789914,4.16,171.09,171.06,1.46333182]
[1729984790102,4.16,171.09,171.04,8.08515072]
[1729984790303,4.16,171.09,171.05,1.46333885]
[1729984790511,4.16,171.09,171.04,8.08515072]
[1729984790704,2.926,171.08,171.05,4.38963923]
[1729984790902,2.926,171.08,171.05,2.9263]
[1729984792012,2.926,171.08,171.06,1.46334098]
[1729984792201,2.926,171.08,171.05,2.9263]
[1729984792408,2.926,171.08,171.06,4.38964098]
[1729984792609,2.926,171.08,171.06,2.9263]
[1729984796003,7.0858,171.09,171.06,2.9263]
[1729984796203,7.0858,171.09,171.07,1.46334056]
[1729984796409,7.0858,171.09,171.06,2.9263]
[1729984796612,7.0858,171.09,171.07,1.46334056]
[1729984796919,7.0858,171.09,171.06,2.9263]
[1729984797215,7.0858,171.09,171.07,1.46334056]
[1729984797416,7.0858,171.09,171.06,2.9263]
[1729984797605,7.0858,171.09,171.07,1.46334714]
[1729984797810,7.0858,171.09,171.06,2.9263]
[1729984798016,7.0858,171.09,171.07,1.46334728]
[1729984798217,7.0858,171.09,171.08,1.46333315]
[1729984800116,2.926,171.08,171.05,2.9264]
[1729984800316,2.926,171.08,171.06,1.46348992]
[1729984800529,2.926,171.08,171.07,1.46348992]
[1729984801017,2.926,171.08,171.05,2.9264]
[1729984801218,2.926,171.08,171.06,1.46352826]
[1729984801416,2.926,171.08,171.05,2.9264]
[1729984801616,2.926,171.08,171.06,1.46350225]
[1729984801812,2.926,171.08,171.07,1.46350225]
[1729984803612,2.926,171.08,171.06,2.9263]
[1729984806317,2.926,171.08,171.07,1.46355418]
[1729984808917,4.16,171.08,171.07,4.38965418]
[1729984810225,4.16,171.08,171.07,9.46930045]
[1729984811122,4.16,171.08,171.07,4.38965418]
[1729984812622,4.16,171.08,171.07,2.9261]
[1729984813019,4.16,171.08,171.07,4.38950235]
[1729984813319,4.16,171.08,171.07,9.46915308]
[1729984814521,4.16,171.08,171.07,6.54305308]
[1729984814726,4.16,171.08,171.07,9.46915308]
[1729984816735,4.16,171.08,171.07,9.47027294]
[1729984820522,4.16,171.08,171.07,4.3894437]
[1729984820722,4.16,171.08,171.07,9.47128317]
[1729984823833,4.16,171.08,171.07,9.47336703]
[1729984824530,4.16,171.08,171.07,8.01002333]
[1729984824735,4.16,171.08,171.07,9.47343218]
[1729984825937,7.0859,171.08,171.07,6.54733218]
[1729984826836,7.0859,171.08,171.07,1.46340885]
[1729984828437,56.86,171.18,171.07,8.08515072]
[1729984828745,4.16,171.17,171.11,8.08515072]
[1729984828924,2.925,171.14,171.12,1.46322338]
[1729984829131,4.16,171.13,171.11,8.08515072]
[1729984829328,4.16,171.12,171.11,8.08515072]
[1729984829529,4.16,171.12,171.11,9.54832542]
[1729984830229,4.16,171.12,171.11,1.4631747]
[1729984831142,7.0852,171.12,171.11,1.4631747]
[1729984831338,7.0852,171.12,171.09,8.08515072]
[1729984831834,7.0852,171.12,171.09,11.01085072]
[1729984834241,7.0852,171.12,171.09,8.08515072]
[1729984834242,2.9254,171.11,171.09,8.08515072]
[1729984834937,2.9254,171.11,171.1,1.4632617]
[1729984835136,4.16,171.12,171.1,1.4632617]
[1729984835335,7.0853,171.12,171.09,8.08515072]
[1729984835537,7.0853,171.12,171.1,1.46326321]
[1729984835736,7.0853,171.12,171.08,2.9259]
[1729984835737,4.16,171.12,171.08,2.9259]
[1729984835941,4.16,171.12,171.09,1.46326344]
[1729984836136,4.16,171.12,171.1,1.46326344]
[1729984836331,4.16,171.12,171.08,11.01105072]
[1729984836538,4.16,171.12,171.09,1.46331478]
[1729984836839,4.16,171.12,171.08,11.01105072]
[1729984836840,4.16,171.12,171.1,1.46331478]
[1729984837045,4.16,171.12,171.08,11.01105072]
[1729984837345,2.9255,171.11,171.09,1.46328958]
[1729984837537,2.9255,171.11,171.1,1.46328958]
[1729984839454,2.9255,171.11,171.08,11.01105072]
[1729984839656,2.9255,171.11,171.1,1.46328004]
[1729984845956,2.9255,171.11,171.08,2.9259]
[1729984846154,2.9255,171.11,171.09,1.46336612]
[1729984846462,7.0853,171.12,171.1,1.46336612]
[1729984846659,7.0853,171.12,171.09,2.9256]
[1729984846863,7.0853,171.12,171.1,1.46331219]
[1729984847061,7.0853,171.12,171.09,2.9256]
[1729984847262,7.0853,171.12,171.1,1.46333819]
[1729984847463,7.0853,171.12,171.09,2.9256]
[1729984847655,7.0853,171.12,171.1,1.46331219]
[1729984847855,7.0853,171.12,171.09,2.9256]
[1729984848059,7.0853,171.12,171.1,1.46332519]
[1729984848256,7.0853,171.12,171.09,2.9256]
[1729984848456,7.0853,171.12,171.1,1.46334469]
[1729984848753,7.0853,171.12,171.09,2.9256]
[1729984848962,7.0853,171.12,171.1,1.46329919]
[1729984849162,7.0853,171.12,171.09,2.9256]
[1729984849367,7.0853,171.12,171.1,1.46329919]
[1729984849662,7.0853,171.12,171.09,2.9256]
[1729984849866,7.0853,171.12,171.1,1.46331397]
[1729984850065,7.0853,171.12,171.09,2.9256]
[1729984850252,7.0853,171.12,171.1,1.46331397]
[1729984850454,7.0853,171.12,171.09,2.9256]
[1729984850668,7.0853,171.12,171.1,1.46333819]
[1729984850859,7.0853,171.12,171.09,2.9256]
[1729984851060,7.0853,171.12,171.1,1.46333819]
[1729984851364,7.0853,171.12,171.09,2.9256]
[1729984851566,7.0853,171.12,171.1,1.46331869]
[1729984851763,2.9254,171.11,171.08,2.9258]
[1729984852063,2.9254,171.11,171.09,1.46333819]
[1729984852263,2.9254,171.11,171.1,1.46333819]
[1729984853056,12.24515072,171.12,171.06,8.08515072]
[1729984853261,12.24515072,171.12,171.07,6.54685921]
[1729984853262,2.9256,171.1,171.07,6.54685921]
[1729984853461,2.9256,171.1,171.08,1.4633984]
[1729984853663,2.9256,171.1,171.09,1.4633984]
[1729984854268,2.9256,171.1,171.07,2.9261]
[1729984854566,2.9256,171.1,171.08,1.46339863]
[1729984854768,2.9256,171.1,171.09,1.46339863]
[1729984858069,2.9256,171.1,171.07,2.9261]
[1729984858273,4.16,171.09,171.08,1.46340513]
[1729984861176,4.16,171.09,171.07,2.9261]
[1729984861369,4.16,171.09,171.08,1.46341457]
[1729984864272,4.16,171.09,171.08,4.38931284]
[1729984864974,4.16,171.09,171.08,2.9259]
[1729984865170,4.16,171.09,171.08,4.38929268]
[1729984868774,4.16,171.09,171.08,4.38926645]
[1729984869874,4.16,171.09,171.08,9.47280276]
[1729984870078,4.16,171.09,171.08,4.38926645]
[1729984870378,4.16,171.09,171.08,1.46336645]
[1729984872081,7.0857,171.09,171.08,1.46336645]
[1729984872285,7.0857,171.09,171.07,11.01115072]
[1729984872575,7.0857,171.09,171.08,1.46343572]
[1729984878183,4.16,171.09,171.08,1.46343572]
[1729984879974,4.16,171.09,171.07,2.926]
[1729984880180,4.16,171.09,171.08,1.46345397]
[1729984882188,4.16,171.09,171.08,12.47450469]
[1729984883791,4.16,171.09,171.08,11.01105072]
[1729984883988,56.86,171.18,171.08,9.54854924]
[1729984884190,2.925,171.14,171.11,2.9254]
[1729984884393,4.16,171.13,171.12,1.46339852]
[1729984885595,7.0851,171.13,171.12,1.46339852]
[1729984887394,7.0851,171.13,171.11,8.08515072]
[1729984887584,7.0851,171.13,171.12,1.46319683]
[1729984889392,4.16,171.13,171.12,1.46319683]
[1729984889894,4.16,171.13,171.12,4.38839683]
[1729984890195,8.08515072,171.16,171.12,4.38839683]
[1729984890493,4.16,171.15,171.13,1.46307971]
[1729984890691,4.16,171.15,171.12,2.9252]
[1729984890894,7.0847,171.15,171.13,1.46305349]
[1729984891092,7.0847,171.15,171.12,11.01035072]
[1729984891796,7.0847,171.15,171.13,1.46307591]
[1729984891992,7.0847,171.15,171.12,11.01035072]
[1729984892195,7.0847,171.15,171.13,1.46307988]
[1729984892491,7.0847,171.15,171.12,11.01035072]
[1729984892693,7.0847,171.15,171.13,1.46307981]
[1729984892894,2.9247,171.15,171.12,11.01035072]
[1729984893095,2.9247,171.15,171.13,1.46307996]
[1729984893096,4.16,171.14,171.13,1.46307996]
[1729984893296,4.16,171.14,171.12,11.01035072]
[1729984893798,4.16,171.14,171.13,1.46302795]
[1729984894293,4.16,171.14,171.12,11.01035072]
[1729984898202,2.9247,171.15,171.12,11.01035072]
[1729984898400,4.16,171.14,171.12,11.01035072]
[1729984904811,4.14,171.14,171.12,11.01035072]
[1729984906206,4.14,171.14,171.12,2.9252]
[1729984906412,4.14,171.14,171.12,11.01035072]
[1729984919715,4.14,171.14,171.12,2.9252]
[1729984919918,4.14,171.14,171.12,11.01035072]
[1729984929744,4.14,171.14,171.13,8.08515072]
[1729984934049,2.9248,171.15,171.13,8.08515072]
[1729984934241,4.14,171.14,171.13,8.08515072]
[1729984942343,7.0649,171.14,171.13,8.08515072]
[1729984942949,4.14,171.14,171.13,8.08515072]
[1729984945157,4.14,171.14,171.13,9.54811225]
[1729984945348,4.14,171.14,171.13,8.08515072]
[1729984947455,4.14,171.14,171.13,9.54819235]
[1729984948159,4.14,171.14,171.13,8.08515072]
[1729984948359,4.14,171.14,171.13,9.54820359]
[1729984950049,4.14,171.14,171.13,1.46305287]
[1729984952156,7.0649,171.14,171.13,1.46305287]
[1729984952471,12.22515072,171.14,171.09,2.9257]
[1729984952753,2.9252,171.13,171.1,6.55061259]
[1729984952968,2.9252,171.13,171.11,1.46320685]
[1729984953164,2.9252,171.13,171.12,1.46320685]
[1729984954253,11.01035072,171.13,171.12,1.46320685]
[1729984954467,11.01035072,171.13,171.09,2.9257]
[1729984954762,11.01035072,171.13,171.1,1.46323]
[1729984954964,11.01035072,171.13,171.11,1.46323]
[1729984955360,11.01035072,171.13,171.09,2.9257]
[1729984956662,2.9252,171.13,171.11,8.08515072]
[1729984956864,4.14,171.14,171.12,8.08515072]
[1729984957161,4.14,171.14,171.13,1.46319239]
[1729984957866,7.0648,171.15,171.13,1.46319239]
[1729984958061,7.0648,171.15,171.12,11.01025072]
[1729984958263,7.0648,171.15,171.13,1.4631658]
[1729984958559,7.0648,171.15,171.12,11.01025072]
[1729984958765,7.0648,171.15,171.13,1.46316567]
[1729984958961,7.0648,171.15,171.12,11.01025072]
[1729984959162,4.14,171.15,171.14,8.08515072]
[1729984959769,4.14,171.15,171.14,9.54822037]
[1729984959968,7.0644,171.17,171.14,9.54822037]
[1729984960167,7.0644,171.17,171.15,1.46306965]
[1729984960368,7.0644,171.17,171.14,8.08515072]
[1729984960566,7.0644,171.17,171.15,1.46304274]
[1729984960761,7.0644,171.17,171.14,8.08515072]
[1729984960967,4.14,171.17,171.15,1.46304101]
[1729984961163,4.14,171.17,171.14,11.01005072]
[1729984961164,4.14,171.17,171.14,8.08515072]
[1729984961372,4.14,171.17,171.15,1.46297434]
[1729984961665,4.14,171.17,171.15,8.08515072]
[1729984962973,2.9243,171.18,171.15,8.08515072]
[1729984963270,4.14,171.17,171.15,8.08515072]
[1729984966578,4.14,171.17,171.16,1.46295893]
[1729984967777,7.0644,171.17,171.16,1.46295893]
[1729984968474,7.0644,171.17,171.15,8.08515072]
[1729984968673,7.0644,171.17,171.16,1.46295389]
[1729984968873,2.9251,171.13,171.09,2.9256]
[1729984969081,7.0651,171.13,171.1,6.54672983]
[1729984969278,7.0651,171.13,171.11,6.54672983]
[1729984969578,7.0651,171.13,171.12,1.46304632]
[1729984969985,7.0651,171.13,171.12,1.46314262]
[1729984971680,7.0651,171.13,171.1,11.01075072]
[1729984971982,7.0651,171.13,171.11,6.54702622]
[1729984972185,7.0651,171.13,171.12,1.46314262]
[1729984972980,4.14,171.13,171.09,8.08515072]
[1729984973180,2.9253,171.12,171.1,1.46320299]
[1729984973379,2.9253,171.12,171.11,1.46320299]
[1729984974076,2.9253,171.12,171.09,8.08515072]
[1729984974279,2.9253,171.12,171.1,1.46331508]
[1729984974484,2.9253,171.12,171.09,8.08515072]
[1729984974676,2.9253,171.12,171.1,1.46331508]
[1729984974878,2.9253,171.12,171.09,8.08515072]
[1729984975087,2.9253,171.12,171.1,1.46332904]
[1729984975384,2.9253,171.12,171.09,8.08515072]
[1729984975587,2.9253,171.12,171.1,1.46332904]
[1729984975782,2.9253,171.12,171.09,8.08515072]
[1729984976086,2.9253,171.12,171.1,1.46332904]
[1729984976279,2.9253,171.12,171.09,8.08515072]
[1729984976589,2.9253,171.12,171.1,1.46332904]
[1729984976772,2.9253,171.12,171.09,8.08515072]
[1729984976976,2.9253,171.12,171.1,1.46332904]
[1729984977173,2.9253,171.12,171.09,8.08515072]
[1729984977386,2.9253,171.12,171.1,1.46332904]
[1729984977586,2.9253,171.12,171.09,8.08515072]
[1729984977787,2.9253,171.12,171.1,1.46332904]
[1729984977986,2.9253,171.12,171.09,8.08515072]
[1729984978186,2.9253,171.12,171.1,1.46330595]
[1729984978386,2.9253,171.12,171.09,8.08515072]
[1729984978583,2.9253,171.12,171.1,1.46330595]
[1729984978797,2.9253,171.12,171.09,8.08515072]
[1729984979184,2.9253,171.12,171.1,1.46330595]
[1729984979390,2.9253,171.12,171.09,8.08515072]
[1729984979590,2.9253,171.12,171.1,1.46329924]
[1729984979786,2.9253,171.12,171.09,8.08515072]
[1729984979986,2.9253,171.12,171.1,1.46330581]
[1729984980192,2.9253,171.12,171.09,8.08515072]
[1729984980390,2.9253,171.12,171.1,1.46330581]
[1729984980685,2.9253,171.12,171.09,8.08515072]
[1729984980887,2.9253,171.12,171.1,1.46330581]
[1729984981086,2.9253,171.12,171.09,8.08515072]
[1729984981287,2.9253,171.12,171.1,1.46330608]
[1729984981483,2.9253,171.12,171.09,8.08515072]
[1729984981792,2.9253,171.12,171.1,1.46330608]
[1729984981990,2.9253,171.12,171.09,8.08515072]
[1729984982289,2.9253,171.12,171.1,1.46330608]
[1729984982483,2.9253,171.12,171.09,2.9257]
[1729984982677,2.9253,171.12,171.1,1.46329961]
[1729984982881,2.9253,171.12,171.09,2.9257]
[1729984983091,2.9253,171.12,171.1,1.46329789]
[1729984983293,2.9253,171.12,171.09,2.9257]
[1729984983482,2.9253,171.12,171.1,1.46330445]
[1729984983681,2.9253,171.12,171.09,2.9257]
[1729984983887,2.9253,171.12,171.1,1.46329789]
[1729984984094,2.9253,171.12,171.09,2.9257]
[1729984984394,2.9253,171.12,171.1,1.46329961]
[1729984984585,2.9253,171.12,171.09,2.9257]
[1729984984785,2.9253,171.12,171.1,1.46330654]
[1729984984989,2.9253,171.12,171.09,2.9257]
[1729984985189,2.9253,171.12,171.1,1.46330654]
[1729984985390,2.9253,171.12,171.09,2.9257]
[1729984985594,2.9253,171.12,171.1,1.46330654]
[1729984985793,2.9253,171.12,171.09,2.9257]
[1729984985986,2.9253,171.12,171.1,1.46330481]
[1729984986186,2.9253,171.12,171.09,2.9257]
[1729984986389,2.9253,171.12,171.1,1.46330481]
[1729984986586,2.9253,171.12,171.09,2.9257]
[1729984986792,2.9253,171.12,171.1,1.46330481]
[1729984986994,2.9253,171.12,171.09,2.9257]
[1729984987300,2.9253,171.12,171.1,1.46330632]
[1729984987487,2.9253,171.12,171.09,2.9257]
[1729984987785,2.9253,171.12,171.1,1.46330632]
[1729984987985,2.9253,171.12,171.09,2.9257]
[1729984988192,2.9253,171.12,171.1,1.46330632]
[1729984988395,2.9253,171.12,171.09,2.9257]
[1729984988591,2.9253,171.12,171.1,1.46330618]
[1729984988895,2.9253,171.12,171.09,2.9257]
[1729984989091,2.9253,171.12,171.1,1.46330618]
[1729984989394,2.9253,171.12,171.09,2.9257]
[1729984989591,2.9253,171.12,171.1,1.46330618]
[1729984989895,2.9253,171.12,171.09,2.9257]
[1729984990095,2.9253,171.12,171.1,1.46330445]
[1729984990395,2.9253,171.12,171.09,2.9257]
[1729984990596,2.9253,171.12,171.1,1.46330445]
[1729984990795,2.9253,171.12,171.09,2.9257]
[1729984990984,2.9253,171.12,171.1,1.46331274]
[1729984991188,2.9253,171.12,171.09,2.9257]
[1729984991395,2.9253,171.12,171.1,1.46331274]
[1729984991595,2.9253,171.12,171.09,2.9257]
[1729984991794,2.9253,171.12,171.1,1.46329961]
[1729984991997,2.9253,171.12,171.09,2.9257]
[1729984992190,2.9253,171.12,171.1,1.46329961]
[1729984992494,2.9253,171.12,171.09,2.9257]
[1729984992696,2.9253,171.12,171.1,1.46330618]
[1729984992902,2.9253,171.12,171.09,2.9257]
[1729984993094,2.9253,171.12,171.1,1.46330618]
[1729984993297,2.9253,171.12,171.09,2.9257]
[1729984993496,2.9253,171.12,171.1,1.46330618]
[1729984993800,2.9253,171.12,171.09,2.9257]
[1729984994004,2.9253,171.12,171.1,1.46329961]
[1729984994201,2.9253,171.12,171.09,2.9257]
[1729984994397,2.9253,171.12,171.1,1.46329961]
[1729984994597,2.9253,171.12,171.09,2.9257]
[1729984994800,2.9253,171.12,171.1,1.46329961]
[1729984995002,2.9253,171.12,171.09,2.9257]
[1729985002101,2.9253,171.12,171.09,11.01085072]
[1729985007914,2.9253,171.12,171.09,2.9257]
[1729985008509,4.14,171.11,171.09,2.9257]
[1729985011008,4.14,171.11,171.1,1.46330618]
[1729985016926,4.14,171.11,171.09,2.9257]
[1729985017724,4.14,171.11,171.1,1.46327852]
[1729985017928,4.14,171.11,171.09,2.9257]
[1729985018228,4.14,171.11,171.1,1.46327852]
[1729985019624,4.14,171.11,171.09,2.9257]
[1729985019828,4.14,171.11,171.1,1.46327182]
[1729985020213,4.14,171.11,171.09,2.9257]
[1729985020420,4.14,171.11,171.1,1.46327182]
[1729985030747,4.14,171.11,171.09,2.9257]
[1729985030949,4.14,171.11,171.1,1.46329182]
[1729985031549,4.14,171.11,171.09,2.9257]
[1729985031851,4.14,171.11,171.1,1.46329182]
[1729985032347,4.14,171.16,171.1,8.08515072]
[1729985032647,4.14,171.16,171.14,8.08515072]
[1729985032840,7.0647,171.16,171.12,2.9252]
[1729985033041,4.14,171.16,171.13,9.54819363]
[1729985033246,4.14,171.16,171.13,8.08515072]
[1729985033550,2.9247,171.15,171.13,8.08515072]
[1729985033846,4.14,171.16,171.13,8.08515072]
[1729985034041,7.0646,171.16,171.13,8.08515072]
[1729985034244,4.14,171.16,171.07,4.14]
[1729985034444,2.9248,171.15,171.11,2.9254]
[1729985034645,2.9248,171.15,171.12,9.54826797]
[1729985034839,2.9248,171.15,171.13,1.46311725]
[1729985035040,2.9248,171.15,171.12,8.08515072]
[1729985035249,2.9248,171.15,171.13,1.46313126]
[1729985035548,2.9248,171.15,171.12,8.08515072]
[1729985035751,2.9248,171.15,171.13,1.46313126]
[1729985035948,2.9248,171.15,171.12,8.08515072]
[1729985036150,2.9248,171.15,171.13,1.46313126]
[1729985036338,2.9248,171.15,171.12,8.08515072]
[1729985036537,2.9248,171.15,171.13,1.46313126]
[1729985036749,2.9248,171.15,171.12,8.08515072]
[1729985036949,2.9248,171.15,171.13,1.46313126]
[1729985037150,2.9248,171.15,171.12,8.08515072]
[1729985037342,2.9248,171.15,171.13,1.46313126]
[1729985037544,2.9248,171.15,171.12,8.08515072]
[1729985037843,2.9248,171.15,171.13,1.46313126]
[1729985038038,2.9248,171.15,171.12,8.08515072]
[1729985038245,2.9248,171.15,171.13,1.46313112]
[1729985038444,2.9248,171.15,171.12,11.01035072]
[1729985038748,2.9248,171.15,171.13,1.46313112]
[1729985038949,2.9248,171.15,171.12,11.01035072]
[1729985039146,2.9248,171.15,171.13,1.46311799]
[1729985039352,2.9248,171.15,171.12,11.01035072]
[1729985039550,2.9248,171.15,171.13,1.46311799]
[1729985039744,2.9248,171.15,171.12,11.01035072]
[1729985039949,2.9248,171.15,171.13,1.46311799]
[1729985040144,2.9248,171.15,171.12,11.01035072]
[1729985040343,2.9248,171.15,171.13,1.46313098]
[1729985040550,2.9248,171.15,171.12,11.01035072]
[1729985040753,2.9248,171.15,171.13,1.46313112]
[1729985041039,2.9248,171.15,171.13,8.08515072]
[1729985043444,2.9248,171.15,171.12,2.9252]
[1729985043748,4.14,171.16,171.1,2.9256]
[1729985043749,11.01015072,171.14,171.1,2.9256]
[1729985043950,11.01015072,171.14,171.11,1.46320089]
[1729985044149,8.08515072,171.14,171.12,1.46318933]
[1729985044359,2.9251,171.13,171.09,8.08515072]
[1729985044649,4.14,171.12,171.1,1.46325843]
[1729985044854,4.14,171.12,171.11,1.46326429]
[1729985048947,4.14,171.12,171.11,1.46326552]
[1729985051348,4.14,171.12,171.11,4.38866552]
[1729985052849,8.08515072,171.17,171.11,4.38866552]
[1729985053154,8.08515072,171.15,171.12,1.46326552]
[1729985053460,8.08515072,171.15,171.1,11.01065072]
[1729985053651,8.08515072,171.15,171.11,1.46322969]
[1729985053854,8.08515072,171.15,171.1,11.01065072]
[1729985054057,8.08515072,171.15,171.11,1.4632462]
[1729985054252,2.925,171.14,171.1,11.01065072]
[1729985054453,2.925,171.14,171.11,1.4632462]
[1729985054658,2.925,171.14,171.1,11.01065072]
[1729985054957,2.925,171.14,171.11,1.4632462]
[1729985055149,2.925,171.14,171.1,11.01065072]
[1729985055350,2.925,171.14,171.11,1.4632462]
[1729985055552,2.925,171.14,171.1,11.01065072]
[1729985055753,2.925,171.14,171.11,1.4632412]
[1729985055953,4.14,171.13,171.1,11.01065072]
[1729985056252,4.14,171.13,171.11,1.46324124]
[1729985056460,4.14,171.13,171.1,11.01065072]
[1729985056650,4.14,171.13,171.11,1.46323293]
[1729985056851,4.14,171.13,171.12,1.46323293]
[1729985058160,4.14,171.13,171.1,11.01065072]
[1729985058359,4.14,171.13,171.11,1.46325919]
[1729985058550,4.14,171.13,171.1,11.01065072]
[1729985058751,4.14,171.13,171.11,1.46324606]
[1729985058959,4.14,171.13,171.1,11.01065072]
[1729985059163,4.14,171.13,171.11,1.46324606]
[1729985059358,4.14,171.13,171.1,11.01065072]
[1729985059563,4.14,171.13,171.11,1.46324606]
[1729985059753,4.14,171.13,171.1,11.01065072]
[1729985059957,4.14,171.13,171.11,1.46324606]
[1729985060155,4.14,171.13,171.1,11.01065072]
[1729985060558,4.14,171.13,171.11,1.46324606]
[1729985060754,4.14,171.13,171.1,11.01065072]
[1729985060961,4.14,171.13,171.11,1.46324606]
[1729985061163,7.0651,171.13,171.12,1.46324606]
[1729985061462,7.0651,171.13,171.1,11.01065072]
[1729985061661,7.0651,171.13,171.11,1.46324606]
[1729985061961,7.0651,171.13,171.1,11.01065072]
[1729985062158,4.14,171.13,171.11,1.46324606]
[1729985062465,8.08515072,171.12,171.07,8.08515072]
[1729985062652,8.08515072,171.12,171.08,6.54734684]
[1729985062858,2.9254,171.11,171.09,1.46332868]
[1729985063056,2.9254,171.11,171.1,1.46332868]
[1729985071570,2.9254,171.11,171.07,11.01125072]
[1729985071762,2.9254,171.11,171.08,6.54636059]
[1729985071963,2.9254,171.11,171.09,1.46331857]
[1729985072163,2.9254,171.11,171.1,1.46331857]
[1729985074172,2.9254,171.11,171.07,11.01125072]
[1729985074473,2.9254,171.11,171.08,6.54622364]
[1729985074664,2.9254,171.11,171.09,1.46332021]
[1729985074863,2.9254,171.11,171.1,1.46332021]
[1729985075059,2.9254,171.11,171.1,1.46338211]